[Event "World Women Teams Championship"]
[Site "Sitges, Spain"]
[Date "2021.09.28"]
[Round "4.9"]
[White "Sebag, Marie"]
[Black "Mammadzada, Gunay"]
[Result "1-0"]
[TimeControl "40+10"]
[WhiteElo "2401"]
[BlackElo "2280"]

1. e4 {[%clk 00:45:18]} c5 {[%clk 00:45:17]} {[%emt 00:00:04]} 2. Nf3 {[%clk
00:45:26]} {[%emt 00:00:02]} d6 {[%clk 00:45:26]} {[%emt 00:00:01]} 3. Bb5+
{[%emt 00:00:18]} Bd7 {[%clk 00:45:10]} {[%emt 00:00:11]} 4. c4 {[%emt
00:02:32]} Nc6 {[%emt 00:02:36]} 5. d4 {[%emt 00:03:41]} cxd4 {[%clk 00:38:42]}
{[%emt 00:00:09]} 6. Nxd4 {[%emt 00:02:48]} Rc8 {[%emt 00:02:06]} 7. Nc3 {[%emt
00:01:37]} Nf6 {[%emt 00:02:50]} 8. O-O {[%emt 00:00:53]} g6 {[%emt 00:03:51]}
9. Bxc6 {[%emt 00:00:27]} Bxc6 {[%emt 00:01:53]} 10. Nxc6 {[%clk 00:33:37]}
{[%emt 00:00:20]} Rxc6 {[%emt 00:00:18]} 11. Qa4 {[%emt 00:07:53]} a6 {[%clk
00:25:40]} {[%emt 00:00:22]} 12. Nd5 {[%clk 00:32:23]} {[%emt 00:01:13]} Nd7
{[%clk 00:25:24]} {[%emt 00:00:26]} 13. Qb3 {[%emt 00:07:22]} Qc8 {[%emt
00:08:54]} 14. Qc3 {[%clk 00:23:22]} {[%emt 00:00:47]} f6 {[%emt 00:01:48]} 15.
b3 {[%clk 00:21:28]} {[%emt 00:00:18]} Bg7 {[%emt 00:02:33]} 16. Qg3 {[%emt
00:03:12]} e6 {[%emt 00:00:50]} 17. Nb4 {[%clk 00:16:45]} {[%emt 00:00:15]} Rb6
{[%emt 00:02:12]} 18. Bd2 {[%emt 00:01:13]} O-O {[%emt 00:00:21]} 19. Rad1
{[%emt 00:02:50]} Nc5 {[%clk 00:14:09]} {[%emt 00:00:35]} 20. Rfe1 {[%emt
00:05:18]} Qe8 {[%emt 00:01:31]} 21. Nc2 {[%emt 00:01:55]} Qe7 {[%emt
00:00:54]} 22. Ba5 {[%clk 00:09:16]} {[%emt 00:01:19]} Rc6 {[%emt 00:00:17]} 23.
Nb4 {[%emt 00:00:11]} Rcc8 {[%emt 00:00:01]} 24. Qxd6 {[%emt 00:00:13]} Qf7
{[%emt 00:00:40]} 25. Bb6 {[%clk 00:08:34]} {[%emt 00:00:29]} Rfe8 {[%emt
00:03:38]} 26. Qd2 {[%emt 00:01:11]} Bf8 {[%emt 00:00:50]} 27. Nd3 {[%emt
00:00:18]} Nd7 {[%clk 00:06:19]} {[%emt 00:00:11]} 28. Ba5 {[%emt 00:00:49]}
Nb8 {[%emt 00:00:07]} 29. Bb6 {[%emt 00:01:51]} Nd7 {[%clk 00:04:25]} {[%emt
00:00:52]} 30. Be3 {[%emt 00:00:28]} Nb8 {[%emt 00:01:07]} 31. Qe2 {[%clk
00:02:52]} {[%emt 00:00:10]} e5 {[%emt 00:01:22]} 32. Bb6 {[%clk 00:02:01]} Nd7
{[%clk 00:03:27]} {[%emt 00:00:06]} 33. Be3 {[%clk 00:01:32]} {[%emt 00:00:39]}
Nb8 {[%clk 00:03:31]} {[%emt 00:00:05]} 34. f3 {[%emt 00:00:51]} Qe6 {[%emt
00:00:43]} 35. Nf2 {[%clk 00:01:10]} {[%emt 00:00:10]} Bb4 {[%clk 00:02:42]}
{[%emt 00:00:08]} 36. Rf1 {[%clk 00:01:06]} {[%emt 00:00:15]} Nc6 {[%emt
00:00:31]} 37. Nd3 {[%emt 00:00:23]} Bf8 {[%clk 00:02:21]} {[%emt 00:00:04]} 38.
Nc5 {[%clk 00:00:46]} {[%emt 00:00:21]} Qf7 {[%clk 00:01:55]} {[%emt 00:00:38]}
39. Rd7 {[%clk 00:00:50]} {[%emt 00:00:05]} Re7 {[%clk 00:02:04]} 40. Rxe7
{[%emt 00:00:15]} Qxe7 {[%clk 00:01:28]} {[%emt 00:00:42]} 41. Rd1 {[%emt
00:00:28]} Nd4 {[%clk 00:01:11]} {[%emt 00:00:19]} 42. Bxd4 {[%clk 00:00:47]}
{[%emt 00:00:03]} exd4 {[%clk 00:01:21]} 43. Nd3 {[%clk 00:00:55]} {[%emt
00:00:01]} Qc7 {[%clk 00:00:30]} {[%emt 00:00:16]} 44. Qf2 {[%clk 00:00:56]} b5
{[%clk 00:00:35]} {[%emt 00:00:59]} 45. c5 {[%clk 00:00:45]} {[%emt 00:00:22]}
b4 {[%clk 00:00:30]} {[%emt 00:00:15]} 46. Rc1 {[%clk 00:00:41]} {[%emt
00:00:13]} Rd8 {[%clk 00:00:23]} {[%emt 00:00:17]} 47. Qc2 {[%clk 00:00:46]}
{[%emt 00:00:05]} a5 {[%clk 00:00:29]} {[%emt 00:00:04]} 48. Qc4+ {[%clk
00:00:47]} {[%emt 00:00:09]} Kh8 {[%clk 00:00:33]} {[%emt 00:00:06]} 49. Qe6
{[%clk 00:00:46]} {[%emt 00:00:10]} Kg7 {[%clk 00:00:30]} {[%emt 00:00:14]} 50.
g3 {[%clk 00:00:44]} {[%emt 00:00:13]} h5 {[%clk 00:00:25]} {[%emt 00:00:15]}
51. Kg2 {[%emt 00:00:05]} a4 {[%clk 00:00:24]} {[%emt 00:00:07]} 52. Qc4 {[%clk
00:00:58]} {[%emt 00:00:04]} axb3 53. axb3 {[%clk 00:01:06]} Ra8 {[%clk
00:00:32]} {[%emt 00:00:10]} 54. Rc2 {[%emt 00:00:08]} h4 {[%clk 00:00:36]}
{[%emt 00:00:05]} 55. Nf4 {[%emt 00:00:04]} Qe5 {[%clk 00:00:22]} {[%emt
00:00:21]} 56. c6 {[%clk 00:01:02]} {[%emt 00:00:26]} Bd6 {[%clk 00:00:13]}
{[%emt 00:00:19]} 57. Qxd4 {[%clk 00:00:58]} {[%emt 00:00:14]} h3+ {[%clk
00:00:13]} {[%emt 00:00:10]} 58. Kxh3 {[%clk 00:00:56]} {[%emt 00:00:12]} Qe7
{[%clk 00:00:13]} {[%emt 00:00:10]} 59. Kg2 {[%clk 00:00:59]} {[%emt 00:00:07]}
Rh8 {[%emt 00:00:15]} 60. Rd2 {[%clk 00:00:57]} {[%emt 00:00:06]} Bxf4 {[%clk
00:00:12]} {[%emt 00:00:11]} 61. gxf4 {[%clk 00:01:04]} {[%emt 00:00:04]} 1-0

[Event "World Women Teams Championship"]
[Site "Sitges, Spain"]
[Date "2021.09.28"]
[Round "4.10"]
[White "Benmesbah, Natacha"]
[Black "Fataliyeva, Ulviyya"]
[Result "1-0"]
[TimeControl "40+10"]
[WhiteElo "2193"]
[BlackElo "2310"]

1. e4 {[%clk 00:45:19]} c6 {[%clk 00:45:19]} {[%emt 00:00:02]} 2. Nc3 {[%clk
00:45:27]} {[%emt 00:00:01]} d5 {[%clk 00:45:27]} {[%emt 00:00:02]} 3. Nf3
{[%clk 00:45:36]} Bg4 {[%clk 00:45:36]} {[%emt 00:00:02]} 4. h3 {[%clk
00:45:45]} {[%emt 00:00:02]} Bxf3 {[%clk 00:45:43]} {[%emt 00:00:02]} 5. Qxf3
{[%clk 00:45:53]} {[%emt 00:00:02]} e6 {[%clk 00:45:52]} {[%emt 00:00:02]} 6.
Be2 {[%clk 00:45:45]} {[%emt 00:00:18]} Nd7 {[%clk 00:44:22]} {[%emt 00:01:39]}
7. d4 {[%clk 00:45:16]} {[%emt 00:00:40]} Qf6 {[%clk 00:42:50]} {[%emt
00:01:41]} 8. Qd3 {[%clk 00:36:01]} {[%emt 00:09:25]} Qg6 {[%clk 00:40:37]}
{[%emt 00:02:23]} 9. O-O {[%clk 00:35:31]} {[%emt 00:00:40]} dxe4 {[%clk
00:39:59]} {[%emt 00:00:48]} 10. Nxe4 {[%clk 00:35:15]} {[%emt 00:00:26]} O-O-O
{[%clk 00:39:58]} {[%emt 00:00:10]} 11. Bf4 {[%clk 00:32:37]} {[%emt 00:02:49]}
Ndf6 {[%clk 00:37:22]} {[%emt 00:02:46]} 12. Bf3 {[%clk 00:31:47]} {[%emt
00:01:01]} Nd5 {[%clk 00:37:07]} {[%emt 00:00:24]} 13. Bh2 {[%clk 00:30:28]}
{[%emt 00:01:30]} Ngf6 {[%clk 00:35:06]} {[%emt 00:02:10]} 14. c4 {[%clk
00:24:48]} {[%emt 00:05:51]} Nxe4 {[%clk 00:25:41]} {[%emt 00:09:35]} 15. Bxe4
{[%clk 00:24:31]} {[%emt 00:00:27]} f5 {[%clk 00:25:48]} {[%emt 00:00:02]} 16.
Bf3 {[%clk 00:22:46]} {[%emt 00:01:56]} Nc7 {[%clk 00:25:07]} {[%emt 00:00:50]}
17. Rfd1 {[%clk 00:21:20]} {[%emt 00:01:37]} Be7 {[%clk 00:23:22]} {[%emt
00:01:55]} 18. Qb3 {[%clk 00:20:55]} {[%emt 00:00:35]} Bd6 {[%clk 00:21:11]}
{[%emt 00:02:21]} 19. Bxd6 {[%clk 00:19:43]} {[%emt 00:01:22]} Rxd6 {[%clk
00:21:19]} {[%emt 00:00:01]} 20. Qa3 {[%clk 00:19:51]} {[%emt 00:00:03]} Rhd8
{[%clk 00:21:27]} {[%emt 00:00:01]} 21. Qxa7 {[%clk 00:19:58]} {[%emt
00:00:03]} Qf6 {[%clk 00:21:35]} {[%emt 00:00:02]} 22. Rd3 {[%clk 00:17:16]}
{[%emt 00:02:52]} Rxd4 {[%clk 00:09:46]} {[%emt 00:11:59]} 23. Rb3 {[%clk
00:17:18]} {[%emt 00:00:07]} Kd7 {[%clk 00:09:38]} {[%emt 00:00:18]} 24. Rxb7
{[%clk 00:17:08]} {[%emt 00:00:21]} Rc8 {[%clk 00:09:47]} {[%emt 00:00:01]} 25.
Rb6 {[%clk 00:15:43]} {[%emt 00:01:36]} Ke7 {[%clk 00:08:28]} {[%emt 00:01:28]}
26. Rxc6 {[%clk 00:15:28]} {[%emt 00:00:25]} Qe5 {[%clk 00:08:36]} {[%emt
00:00:01]} 27. Qb7 {[%clk 00:14:34]} {[%emt 00:01:05]} Rdd8 {[%clk 00:08:43]}
{[%emt 00:00:03]} 28. Qb4+ {[%clk 00:11:27]} {[%emt 00:03:17]} Kf6 {[%clk
00:08:30]} {[%emt 00:00:22]} 29. Re1 {[%clk 00:11:15]} {[%emt 00:00:22]} Qd4
{[%clk 00:06:42]} {[%emt 00:01:58]} 30. Qb7 {[%clk 00:10:03]} {[%emt 00:01:23]}
Qd7 {[%clk 00:05:27]} {[%emt 00:01:24]} 31. Bd5 {[%clk 00:07:23]} {[%emt
00:02:50]} Rb8 {[%clk 00:04:29]} {[%emt 00:01:09]} 32. Qxc7 {[%clk 00:07:28]}
{[%emt 00:00:06]} Qxc7 {[%clk 00:04:37]} {[%emt 00:00:01]} 33. Rexe6+ {[%clk
00:07:36]} {[%emt 00:00:02]} 1-0

[Event "World Women Teams Championship"]
[Site "Sitges, Spain"]
[Date "2021.09.28"]
[Round "4.11"]
[White "Mammadova, Gulnar"]
[Black "Navrotescu, Andreea"]
[Result "1/2-1/2"]
[TimeControl "40+10"]
[WhiteElo "2406"]
[BlackElo "2220"]

1. Nf3 {[%clk 00:45:17]} {[%emt 00:00:02]} d5 {[%clk 00:45:18]} {[%emt
00:00:02]} 2. d4 {[%clk 00:45:23]} {[%emt 00:00:04]} Nf6 {[%clk 00:45:22]}
{[%emt 00:00:06]} 3. Bf4 {[%clk 00:45:28]} {[%emt 00:00:06]} c5 {[%clk
00:44:37]} {[%emt 00:00:55]} 4. e3 {[%clk 00:45:09]} {[%emt 00:00:29]} Nc6
{[%clk 00:44:42]} {[%emt 00:00:05]} 5. c3 {[%clk 00:43:56]} {[%emt 00:01:23]}
Qb6 {[%clk 00:44:40]} {[%emt 00:00:12]} 6. Qb3 {[%clk 00:43:25]} {[%emt
00:00:41]} c4 {[%clk 00:44:41]} {[%emt 00:00:09]} 7. Qc2 {[%clk 00:43:34]}
{[%emt 00:00:01]} Bf5 {[%clk 00:44:43]} {[%emt 00:00:08]} 8. Qc1 {[%clk
00:43:42]} {[%emt 00:00:02]} h6 {[%clk 00:43:41]} {[%emt 00:01:12]} 9. Nbd2
{[%clk 00:43:29]} {[%emt 00:00:23]} e6 {[%clk 00:42:33]} {[%emt 00:01:18]} 10.
Be2 {[%clk 00:42:38]} {[%emt 00:01:01]} Be7 {[%clk 00:41:55]} {[%emt 00:00:48]}
11. h3 {[%clk 00:41:18]} {[%emt 00:01:30]} Qd8 {[%clk 00:41:39]} {[%emt
00:00:25]} 12. Ne5 {[%clk 00:40:08]} {[%emt 00:01:21]} Nxe5 {[%clk 00:41:18]}
{[%emt 00:00:31]} 13. Bxe5 {[%clk 00:40:08]} {[%emt 00:00:10]} O-O {[%clk
00:40:28]} {[%emt 00:00:59]} 14. g4 {[%clk 00:37:45]} {[%emt 00:02:34]} Bh7
{[%clk 00:40:15]} {[%emt 00:00:23]} 15. Bg3 {[%clk 00:36:41]} {[%emt 00:01:15]}
b5 {[%clk 00:39:34]} {[%emt 00:00:51]} 16. h4 {[%clk 00:36:08]} {[%emt
00:00:43]} Ne4 {[%clk 00:37:01]} {[%emt 00:02:42]} 17. Nxe4 {[%clk 00:35:46]}
{[%emt 00:00:33]} Bxe4 {[%clk 00:37:09]} {[%emt 00:00:02]} 18. f3 {[%clk
00:35:55]} {[%emt 00:00:01]} Bh7 {[%clk 00:36:07]} {[%emt 00:01:12]} 19. Kf2
{[%clk 00:35:33]} {[%emt 00:00:32]} b4 {[%clk 00:34:42]} {[%emt 00:01:35]} 20.
f4 {[%clk 00:33:58]} {[%emt 00:01:45]} Be4 {[%clk 00:34:42]} {[%emt 00:00:10]}
21. Bf3 {[%clk 00:32:43]} {[%emt 00:01:25]} Bxf3 {[%clk 00:34:40]} {[%emt
00:00:12]} 22. Kxf3 {[%clk 00:32:51]} {[%emt 00:00:02]} f5 {[%clk 00:34:44]}
{[%emt 00:00:06]} 23. h5 {[%clk 00:29:46]} {[%emt 00:03:15]} fxg4+ {[%clk
00:27:54]} {[%emt 00:07:00]} 24. Kxg4 {[%clk 00:29:54]} {[%emt 00:00:02]} Qd7
{[%clk 00:27:28]} {[%emt 00:00:35]} 25. Kf3 {[%clk 00:30:02]} {[%emt 00:00:03]}
Rf5 {[%clk 00:25:17]} {[%emt 00:02:21]} 26. Qc2 {[%clk 00:28:29]} {[%emt
00:01:43]} Raf8 {[%clk 00:25:01]} {[%emt 00:00:26]} 27. Kg2 {[%clk 00:26:13]}
{[%emt 00:02:26]} Qe8 {[%clk 00:23:47]} {[%emt 00:01:25]} 28. Qe2 {[%clk
00:25:33]} {[%emt 00:00:50]} a5 {[%clk 00:22:51]} {[%emt 00:01:06]} 29. Rae1
{[%clk 00:23:34]} {[%emt 00:02:08]} Qa4 {[%clk 00:22:41]} {[%emt 00:00:20]} 30.
Ra1 {[%clk 00:19:51]} {[%emt 00:03:53]} Rb8 {[%clk 00:21:26]} {[%emt 00:01:25]}
31. e4 {[%clk 00:19:16]} {[%emt 00:00:45]} dxe4 {[%clk 00:21:20]} {[%emt
00:00:17]} 32. Qxe4 {[%clk 00:19:14]} {[%emt 00:00:12]} bxc3 {[%clk 00:20:57]}
{[%emt 00:00:33]} 33. Qxe6+ {[%clk 00:18:52]} {[%emt 00:00:32]} Rf7 {[%clk
00:21:05]} {[%emt 00:00:02]} 34. bxc3 {[%clk 00:18:49]} {[%emt 00:00:11]} Qc2+
{[%clk 00:17:34]} {[%emt 00:03:43]} 35. Kh3 {[%clk 00:18:19]} {[%emt 00:00:40]}
Qxc3 {[%clk 00:16:30]} {[%emt 00:01:14]} 36. Rac1 {[%emt 00:01:12]} Qf3 {[%clk
00:14:34]} {[%emt 00:01:44]} 37. Qg4 {[%clk 00:17:06]} {[%emt 00:00:43]} Qd5
{[%clk 00:14:34]} {[%emt 00:00:09]} 38. Qe2 {[%clk 00:15:38]} {[%emt 00:01:38]}
Bd6 {[%clk 00:11:52]} {[%emt 00:02:53]} 39. Rhf1 {[%clk 00:13:39]} {[%emt
00:02:09]} Rc8 {[%emt 00:02:38]} 40. Rc3 {[%clk 00:10:51]} {[%emt 00:01:28]}
Rf5 {[%clk 00:09:18]} {[%emt 00:01:46]} 41. Qf3 {[%clk 00:10:25]} {[%emt
00:00:36]} Rxh5+ {[%clk 00:09:12]} {[%emt 00:00:16]} 42. Kg2 {[%emt 00:00:09]}
Qf5 {[%clk 00:08:59]} {[%emt 00:00:16]} 43. Rfc1 {[%clk 00:09:58]} {[%emt
00:00:44]} Rb8 {[%clk 00:07:29]} {[%emt 00:01:41]} 44. Rxc4 {[%clk 00:08:36]}
{[%emt 00:01:32]} Rb2+ {[%emt 00:00:17]} 45. Kg1 {[%clk 00:08:43]} {[%emt
00:00:11]} Rh3 {[%clk 00:05:32]} {[%emt 00:02:12]} 46. R4c3 {[%clk 00:05:33]}
{[%emt 00:03:19]} h5 {[%clk 00:04:50]} {[%emt 00:00:53]} 47. Qc6 {[%clk
00:04:10]} {[%emt 00:01:33]} Kh7 {[%clk 00:03:06]} {[%emt 00:01:54]} 48. Bf2
{[%clk 00:00:50]} {[%emt 00:03:30]} Bxf4 {[%clk 00:01:49]} {[%emt 00:01:27]} 49.
Rxh3 {[%clk 00:00:43]} {[%emt 00:00:17]} Bxc1 {[%clk 00:01:56]} {[%emt
00:00:02]} 50. Qf3 {[%clk 00:00:18]} {[%emt 00:00:35]} Qxf3 {[%clk 00:01:36]}
{[%emt 00:00:31]} 51. Rxf3 {[%clk 00:00:27]} Rxa2 {[%clk 00:01:44]} {[%emt
00:00:02]} 52. Rf5 {[%clk 00:00:25]} {[%emt 00:00:12]} Kg6 {[%clk 00:01:49]}
{[%emt 00:00:05]} 53. Rc5 {[%clk 00:00:31]} {[%emt 00:00:03]} Bf4 {[%clk
00:01:49]} {[%emt 00:00:11]} 54. d5 {[%clk 00:00:28]} {[%emt 00:00:13]} a4
{[%clk 00:01:24]} {[%emt 00:00:36]} 55. Ra5 {[%clk 00:00:36]} {[%emt 00:00:02]}
Kf7 {[%clk 00:01:18]} {[%emt 00:00:16]} 56. Ra7+ {[%clk 00:00:40]} {[%emt
00:00:06]} Kf8 {[%clk 00:01:05]} {[%emt 00:00:23]} 57. Bc5+ {[%clk 00:00:34]}
{[%emt 00:00:15]} Kg8 {[%clk 00:01:14]} {[%emt 00:00:02]} 58. d6 {[%clk
00:00:27]} {[%emt 00:00:16]} Rd2 {[%clk 00:01:23]} {[%emt 00:00:02]} 59. d7
{[%emt 00:00:11]} Bg5 {[%clk 00:01:20]} {[%emt 00:00:11]} 60. Bb6 {[%clk
00:00:14]} {[%emt 00:00:24]} Kh7 {[%clk 00:01:17]} {[%emt 00:00:12]} 61. Ra5
{[%emt 00:00:22]} Bf6 {[%clk 00:00:52]} {[%emt 00:00:20]} 62. Rxh5+ {[%clk
00:00:25]} {[%emt 00:00:03]} Kg6 {[%clk 00:01:01]} {[%emt 00:00:01]} 63. Ra5
{[%clk 00:00:32]} {[%emt 00:00:02]} Rxd7 {[%clk 00:00:55]} {[%emt 00:00:17]} 64.
Rxa4 {[%clk 00:00:41]} {[%emt 00:00:01]} Rd2 {[%clk 00:01:02]} {[%emt
00:00:02]} 65. Be3 {[%clk 00:00:40]} {[%emt 00:00:11]} Rc2 {[%clk 00:01:09]}
{[%emt 00:00:04]} 66. Bf2 {[%clk 00:00:43]} {[%emt 00:00:07]} Kh5 {[%clk
00:01:07]} {[%emt 00:00:11]} 67. Kg2 {[%clk 00:00:39]} {[%emt 00:00:14]} Rc3
{[%clk 00:00:40]} {[%emt 00:00:37]} 68. Ra6 {[%clk 00:00:31]} {[%emt 00:00:18]}
Rb3 {[%emt 00:00:21]} 69. Rc6 {[%clk 00:00:25]} Kg6 {[%clk 00:00:42]} {[%emt
00:00:14]} 1/2-1/2

[Event "World Women Teams Championship"]
[Site "Sitges, Spain"]
[Date "2021.09.28"]
[Round "4.12"]
[White "Mamedjarova, Zeinab"]
[Black "Alexieva, Silvia"]
[Result "0-1"]
[TimeControl "40+10"]
[WhiteElo "2198"]
[BlackElo "2277"]

1. Nf3 {[%clk 00:45:19]} Nf6 {[%clk 00:45:12]} {[%emt 00:00:08]} 2. g3 {[%clk
00:45:26]} {[%emt 00:00:03]} d5 {[%clk 00:44:51]} {[%emt 00:00:31]} 3. Bg2
{[%clk 00:45:35]} {[%emt 00:00:02]} Nc6 {[%clk 00:43:53]} {[%emt 00:01:07]} 4.
O-O {[%clk 00:45:34]} {[%emt 00:00:11]} e5 {[%clk 00:43:30]} {[%emt 00:00:33]}
5. d3 {[%clk 00:45:43]} {[%emt 00:00:02]} h6 {[%clk 00:41:32]} {[%emt
00:02:08]} 6. b3 {[%clk 00:45:08]} {[%emt 00:00:44]} Bd6 {[%clk 00:37:30]}
{[%emt 00:04:12]} 7. Bb2 {[%clk 00:45:08]} {[%emt 00:00:10]} O-O {[%emt
00:04:03]} 8. c4 {[%clk 00:41:20]} {[%emt 00:00:26]} Re8 {[%clk 00:33:58]}
{[%emt 00:03:22]} 9. cxd5 {[%clk 00:40:54]} {[%emt 00:00:36]} Nxd5 {[%clk
00:34:05]} {[%emt 00:00:02]} 10. Nbd2 {[%clk 00:41:02]} {[%emt 00:00:02]} Bg4
{[%emt 00:02:29]} 11. Nc4 {[%clk 00:40:08]} {[%emt 00:00:50]} Nf6 {[%clk
00:24:50]} {[%emt 00:07:20]} 12. h3 {[%clk 00:38:24]} {[%emt 00:01:54]} Bh5
{[%clk 00:24:57]} {[%emt 00:00:03]} 13. Nxd6 {[%clk 00:38:19]} {[%emt
00:00:14]} cxd6 {[%clk 00:24:55]} {[%emt 00:00:13]} 14. Nh4 {[%clk 00:37:46]}
{[%emt 00:00:42]} Qd7 {[%clk 00:21:35]} {[%emt 00:03:31]} 15. Rc1 {[%clk
00:27:22]} {[%emt 00:10:34]} d5 {[%clk 00:20:18]} {[%emt 00:01:27]} 16. Qd2
{[%emt 00:04:36]} d4 {[%clk 00:17:43]} {[%emt 00:00:25]} 17. f4 {[%clk
00:21:49]} {[%emt 00:03:36]} exf4 {[%emt 00:02:40]} 18. g4 {[%clk 00:19:39]}
{[%emt 00:00:51]} Bg6 {[%clk 00:15:35]} {[%emt 00:01:17]} 19. Nxg6 {[%clk
00:17:19]} {[%emt 00:02:31]} fxg6 {[%clk 00:15:43]} {[%emt 00:00:02]} 20. Rxf4
{[%emt 00:07:29]} Nd5 {[%clk 00:14:24]} {[%emt 00:00:26]} 21. Rf2 {[%clk
00:07:06]} {[%emt 00:04:06]} Ne3 {[%clk 00:14:12]} {[%emt 00:00:22]} 22. Be4
{[%emt 00:00:58]} Qd6 {[%clk 00:14:07]} {[%emt 00:00:03]} 23. Rf3 {[%clk
00:06:31]} {[%emt 00:00:10]} Rf8 {[%clk 00:12:23]} {[%emt 00:01:53]} 24. Rxe3
{[%clk 00:03:57]} {[%emt 00:02:45]} dxe3 {[%clk 00:10:42]} {[%emt 00:01:50]} 25.
Qxe3 {[%clk 00:03:55]} {[%emt 00:00:13]} Rf7 {[%clk 00:09:09]} {[%emt
00:01:42]} 26. Bg2 {[%emt 00:00:59]} Raf8 {[%clk 00:07:51]} {[%emt 00:01:13]}
27. d4 {[%emt 00:02:30]} Re7 {[%clk 00:04:29]} {[%emt 00:01:06]} 28. Qd3 {[%clk
00:03:21]} {[%emt 00:00:17]} Kh7 {[%clk 00:04:19]} {[%emt 00:00:19]} 29. e4
{[%clk 00:02:30]} {[%emt 00:01:02]} Rd8 {[%clk 00:03:52]} {[%emt 00:00:37]} 30.
Rd1 {[%clk 00:01:48]} {[%emt 00:00:52]} Ne5 {[%clk 00:03:10]} {[%emt 00:00:51]}
31. Qe3 {[%clk 00:01:32]} {[%emt 00:00:25]} Nf7 {[%clk 00:03:13]} {[%emt
00:00:08]} 32. Rf1 {[%clk 00:01:07]} {[%emt 00:00:35]} Qb6 {[%clk 00:02:54]}
{[%emt 00:00:29]} 33. Kh1 {[%clk 00:01:00]} {[%emt 00:00:17]} Ng5 {[%clk
00:02:46]} {[%emt 00:00:18]} 34. e5 {[%clk 00:01:03]} {[%emt 00:00:08]} Ne6
{[%clk 00:02:41]} {[%emt 00:00:14]} 35. h4 {[%clk 00:00:38]} {[%emt 00:00:35]}
Nxd4 {[%clk 00:02:02]} {[%emt 00:00:48]} 36. h5 {[%clk 00:00:48]} {[%emt
00:00:01]} Ne6 {[%clk 00:01:44]} {[%emt 00:00:28]} 37. hxg6+ {[%clk 00:00:29]}
{[%emt 00:00:29]} Kg8 {[%emt 00:00:06]} 38. Qc3 {[%clk 00:00:22]} {[%emt
00:00:14]} Qd4 {[%clk 00:00:59]} {[%emt 00:01:02]} 39. Qxd4 {[%clk 00:00:18]}
{[%emt 00:00:14]} Nxd4 {[%clk 00:01:08]} 40. Rd1 {[%clk 00:00:20]} {[%emt
00:00:08]} Red7 {[%clk 00:00:57]} {[%emt 00:00:22]} 41. Bf1 {[%clk 00:00:25]}
{[%emt 00:00:05]} b5 {[%clk 00:00:44]} {[%emt 00:00:22]} 42. Rc1 {[%clk
00:00:27]} {[%emt 00:00:08]} a6 {[%clk 00:00:52]} {[%emt 00:00:02]} 43. Bg2
{[%clk 00:00:28]} {[%emt 00:00:09]} Ne2 {[%clk 00:00:58]} {[%emt 00:00:05]} 44.
Rc6 {[%clk 00:00:32]} {[%emt 00:00:06]} Nf4 {[%clk 00:00:51]} {[%emt 00:00:16]}
45. Bf3 {[%clk 00:00:30]} {[%emt 00:00:12]} Rd2 {[%clk 00:00:49]} {[%emt
00:00:13]} 46. Bc1 {[%clk 00:00:29]} {[%emt 00:00:11]} Rf2 {[%clk 00:00:53]}
{[%emt 00:00:06]} 47. Rc3 {[%clk 00:00:14]} {[%emt 00:00:25]} Ne2 {[%clk
00:00:46]} {[%emt 00:00:17]} 48. Bxe2 {[%emt 00:00:13]} Rxe2 {[%clk 00:00:55]}
{[%emt 00:00:01]} 49. Be3 {[%clk 00:00:19]} {[%emt 00:00:02]} Rd1+ {[%clk
00:01:02]} {[%emt 00:00:03]} 50. Bg1 {[%clk 00:00:28]} {[%emt 00:00:01]} Kf8
{[%clk 00:01:10]} {[%emt 00:00:02]} 51. Rf3+ {[%clk 00:00:17]} {[%emt
00:00:21]} Ke8 {[%clk 00:01:18]} {[%emt 00:00:02]} 52. a4 {[%clk 00:00:18]}
{[%emt 00:00:09]} Ree1 {[%clk 00:01:24]} {[%emt 00:00:04]} 53. Rg3 {[%clk
00:00:22]} {[%emt 00:00:06]} Rd2 {[%clk 00:01:05]} {[%emt 00:00:29]} 54. axb5
{[%clk 00:00:30]} {[%emt 00:00:03]} axb5 {[%clk 00:01:14]} 55. g5 {[%clk
00:00:33]} {[%emt 00:00:06]} h5 {[%clk 00:01:16]} {[%emt 00:00:08]} 56. Rh3
{[%clk 00:00:16]} {[%emt 00:00:26]} Ke7 {[%clk 00:01:19]} {[%emt 00:00:07]} 57.
Rf3 {[%clk 00:00:24]} {[%emt 00:00:03]} Ke6 {[%clk 00:01:20]} {[%emt 00:00:08]}
58. b4 {[%clk 00:00:30]} {[%emt 00:00:05]} Rdd1 {[%clk 00:01:09]} {[%emt
00:00:20]} 59. Rf7 {[%clk 00:00:13]} {[%emt 00:00:28]} Rxg1+ {[%clk 00:01:16]}
{[%emt 00:00:02]} 60. Kh2 {[%clk 00:00:22]} Rh1+ {[%clk 00:01:22]} {[%emt
00:00:05]} 61. Kg2 {[%clk 00:00:31]} Rdg1+ {[%clk 00:01:30]} {[%emt 00:00:03]}
62. Kf2 {[%clk 00:00:40]} Rxg5 {[%clk 00:01:22]} {[%emt 00:00:17]} 63. Rxg7
{[%clk 00:00:47]} {[%emt 00:00:03]} Rxe5 {[%clk 00:01:21]} {[%emt 00:00:11]} 64.
Rb7 {[%clk 00:00:54]} {[%emt 00:00:04]} Rg5 {[%clk 00:01:21]} {[%emt 00:00:10]}
65. Rb6+ {[%clk 00:00:53]} {[%emt 00:00:11]} Ke7 {[%clk 00:01:24]} {[%emt
00:00:06]} 66. g7 {[%clk 00:00:40]} {[%emt 00:00:24]} Rxg7 {[%clk 00:01:31]}
{[%emt 00:00:03]} 67. Rxb5 {[%clk 00:00:47]} {[%emt 00:00:03]} h4 {[%clk
00:01:26]} {[%emt 00:00:14]} 68. Rb8 {[%clk 00:00:45]} {[%emt 00:00:14]} Rb1
{[%clk 00:01:27]} {[%emt 00:00:08]} 69. Ke3 {[%clk 00:00:40]} {[%emt 00:00:15]}
Rg4 {[%emt 00:00:06]} 70. b5 {[%clk 00:00:33]} {[%emt 00:00:16]} Rgb4 {[%clk
00:01:41]} {[%emt 00:00:02]} 0-1

[ePGN "0.1;DGT LiveChess/2.2.5"]

[Event "World Women Teams  Championship"]
[Site "Sitges, Spain"]
[Date "2021.09.28"]
[Round "4.2"]
[White "Batsiashvili, Nino"]
[Black "Socko, Monika"]
[Result "1/2-1/2"]
[TimeControl "40+10"]
[WhiteElo "2371"]
[BlackElo "2293"]

1. c4 {[%clk 00:45:17]} {[%emt 00:00:05]} Nf6 {[%clk 00:45:18]} 2. Nc3 {[%clk
00:45:24]} {[%emt 00:00:03]} e6 {[%clk 00:45:34]} {[%emt 00:00:21]} 3. e4
{[%clk 00:45:14]} {[%emt 00:00:07]} d5 4. cxd5 {[%emt 00:00:07]} exd5 {[%clk
00:45:39]} {[%emt 00:00:05]} 5. e5 {[%emt 00:03:34]} Ne4 {[%clk 00:42:08]}
{[%emt 00:00:08]} 6. d3 {[%emt 00:00:29]} Nxc3 7. bxc3 {[%clk 00:44:10]} c5 8.
d4 {[%emt 00:01:43]} Nc6 {[%emt 00:00:18]} 9. Nf3 {[%clk 00:39:02]} {[%emt
00:03:41]} cxd4 10. Nxd4 {[%clk 00:38:39]} {[%emt 00:06:03]} Bc5 11. f4 {[%clk
00:36:45]} {[%emt 00:02:09]} O-O 12. Bd3 {[%emt 00:13:37]} Nxd4 {[%clk
00:23:22]} {[%emt 00:00:24]} 13. cxd4 {[%clk 00:36:38]} {[%emt 00:00:07]} Bxd4
{[%clk 00:23:37]} 1/2-1/2